fUSD/lending_fUSD_20250202
["ID","MTS","AMOUNT","RATE_DAILY","PERIOD"]
[351314536,1738511518683,-2398.8,0.00013287,2]
[351314537,1738511518694,-986.99,0.00013287,2]
[351314538,1738511518703,-161.73379,0.00013287,2]
[351314539,1738511518713,-6074.3,0.00013287,2]
[351314540,1738511518725,-886.37,0.00013287,2]
[351314541,1738511518736,-161.73379,0.00013287,2]
[351314542,1738511518747,-1376.7,0.00013287,2]
[351314543,1738511518757,-1289.080245,0.00013287,2]
[351314544,1738511518766,-1289.080245,0.00013287,2]
[351314545,1738511518776,-500.0,0.00013287,2]
[351314546,1738511518786,-715.29,0.00013287,2]
[351314547,1738511518795,-1472.49,0.00013287,2]
[351314548,1738511518805,-520.69,0.00013287,2]
[351314549,1738511518816,-2816.92,0.00013287,2]
[351314550,1738511518826,-1537.46,0.00013287,2]
[351314551,1738511518836,-1782.22,0.00013287,2]
[351314552,1738511518846,-151.0,0.00013287,2]
[351314553,1738511518857,-2593.44,0.00013287,2]
[351314554,1738511518866,-1707.98,0.00013287,2]
[351314555,1738511518876,-814.03,0.00013287,2]
[351314556,1738511518885,-2517.19,0.00013287,2]
[351314557,1738511518895,-3495.99,0.00013287,2]
[351314558,1738511518905,-1097.15,0.00013287,2]
[351314559,1738511518915,-3686.72,0.00013287,2]
[351314560,1738511518925,-500.0,0.00013287,2]
[351314561,1738511518935,-873.88,0.00013287,2]
[351314562,1738511518946,-151.0,0.00013287,2]
[351314563,1738511518955,-4032.99,0.00013287,2]
[351314564,1738511518965,-500.0,0.00013287,2]
[351314565,1738511518975,-2612.06,0.00013287,2]
[351314566,1738511518986,-3411.01,0.00013287,2]
[351314567,1738511518996,-2404.98,0.00013287,2]
[351314568,1738511519006,-151.0,0.00013287,2]
[351314569,1738511519016,-500.0,0.00013287,2]
[351314570,1738511519026,-866.33,0.00013287,2]
[351314571,1738511519037,-3469.55,0.00013287,2]
[351314572,1738511519047,-1883.12,0.00013287,2]
[351314573,1738511519057,-2058.8,0.00013287,2]
[351314574,1738511519067,-1319.01,0.00013287,2]
[351314575,1738511519078,-608.43,0.00013287,2]
[351314576,1738511519087,-2391.61,0.00013287,2]
[351314577,1738511519098,-4530.32,0.00013287,2]
[351314578,1738511519107,-500.0,0.00013287,2]
[351314579,1738511519117,-1228.14,0.00013287,2]
[351314580,1738511519127,-151.0,0.00013287,2]
[351314581,1738511519136,-6198.62,0.00013287,2]
[351314582,1738511519146,-4177.74,0.00013287,2]
[351314583,1738511519155,-853.08,0.00013287,2]
[351314584,1738511519165,-669.71,0.00013287,2]
[351314585,1738511519175,-539.5,0.00013287,2]
[351314586,1738511519185,-1402.67,0.00013287,2]
[351314587,1738511519196,-1801.53,0.00013287,2]
[351314588,1738511519206,-1549.92,0.00013287,2]
[351314589,1738511519215,-820.42,0.00013287,2]
[351314590,1738511519226,-569.44,0.00013287,2]
[351314591,1738511519236,-935.02,0.00013287,2]
[351314592,1738511519246,-816.63,0.00013287,2]
[351314593,1738511519255,-500.0,0.00013287,2]
[351314594,1738511519265,-584.53,0.00013287,2]
[351314595,1738511519275,-885.67,0.00013287,2]
[351314596,1738511519284,-1332.82,0.00013417,2]
[351314597,1738511519294,-1964.01,0.00013417,2]
[351314598,1738511519303,-2603.59,0.00013417,2]
[351314599,1738511519313,-2889.94,0.00013417,2]
[351314600,1738511519323,-4743.23,0.00013417,2]
[351314601,1738511519333,-10523.62,0.00013417,2]
[351314602,1738511519342,-1554.63,0.00013417,2]
[351314603,1738511519352,-1284.59,0.00013417,2]
[351314604,1738511519362,-1679.21,0.00013417,2]
[351314605,1738511519371,-2652.81,0.00013417,2]
[351314606,1738511519381,-654.17,0.00013417,2]
[351314607,1738511519391,-1718.82,0.00013417,2]
[351314608,1738511519401,-1974.37,0.00013417,2]
[351314609,1738511519410,-2000.83,0.00013417,2]
[351314610,1738511519420,-836.56,0.00013417,2]
[351314611,1738511519430,-1343.39,0.00013417,2]
[351314612,1738511519440,-1186.75,0.00013417,2]
[351314613,1738511519450,-323.22780939,0.00013417,2]
[351314614,1738511519460,-500.0,0.00013418,2]
[351314615,1738511519470,-595.22076568,0.00013418,2]
[351314616,1738511519479,-596.58,0.00013418,2]
[351314617,1738511519489,-500.0,0.00013418,2]
[351314618,1738511519499,-710.49,0.00013418,2]
[351314619,1738511519511,-218.4,0.00013419,2]
[351314620,1738511519521,-218.4,0.00013419,2]
[351314621,1738511519530,-814.253625,0.00013419,2]
[351314622,1738511519540,-814.253625,0.00013419,2]
[351314623,1738511519551,-301.022886,0.00013419,2]
[351314624,1738511519561,-1187.42,0.00013419,2]
[351314625,1738511519570,-817.82,0.00013419,2]
[351314626,1738511519580,-607.41,0.00013419,2]
[351314627,1738511519591,-500.0,0.00013419,2]
[351314628,1738511519601,-1230.03,0.00013419,2]
[351314629,1738511519611,-615.34,0.00013419,2]
[351314630,1738511519621,-172.046731,0.00013419,2]
[351314631,1738511519630,-172.046731,0.00013419,2]
[351314632,1738511519640,-231.451958,0.00013419,2]
[351314633,1738511519650,-714.07,0.00013419,2]
[351314634,1738511519660,-231.451958,0.00013419,2]
[351314635,1738511519670,-215.347021,0.00013419,2]
[351314636,1738511519680,-1449.17,0.00013419,2]
[351314637,1738511519691,-215.347021,0.00013419,2]
[351314638,1738511519702,-1251.19,0.00013419,2]
[351314639,1738511519712,-1405.84,0.00013419,2]
[351314640,1738511519722,-1494.61,0.00013419,2]
[351314641,1738511519732,-828.44,0.00013419,2]
[351314642,1738511519742,-500.0,0.00013419,2]
[351314643,1738511519752,-676.04,0.00013419,2]
[351314644,1738511519763,-535.23,0.00013419,2]
[351314645,1738511519772,-1723.36,0.00013419,2]
[351314646,1738511519782,-854.84,0.00013419,2]
[351314647,1738511519792,-1459.08,0.00013419,2]
[351314648,1738511519803,-1678.19,0.00013419,2]
[351314649,1738511519812,-571.62,0.00013419,2]
[351314650,1738511519823,-780.5,0.00013419,2]
[351314651,1738511519833,-1296.82,0.00013419,2]
[351314652,1738511519842,-1446.98,0.00013419,2]
[351314653,1738511519851,-618.81,0.00013419,2]
[351314654,1738511519861,-730.18,0.00013419,2]
[351314655,1738511519871,-609.86,0.00013419,2]
[351314656,1738511519881,-978.46,0.00013423,2]
[351314657,1738511519891,-518.13,0.00013423,2]
[351314658,1738511519901,-1147.35,0.00013423,2]
[351314659,1738511519911,-668.46,0.00013423,2]
[351314660,1738511519921,-1211.37,0.00013423,2]
[351314661,1738511519932,-594.76,0.00013423,2]
[351314662,1738511519941,-1093.43,0.00013423,2]
[351314663,1738511519951,-500.0,0.00013423,2]
[351314664,1738511519961,-829.51,0.00013423,2]
[351314665,1738511519971,-500.0,0.00013423,2]
[351314666,1738511519981,-500.0,0.00013423,2]
[351314667,1738511519991,-1097.71,0.00013423,2]
[351314668,1738511520001,-1068.84,0.00013423,2]
[351314669,1738511520011,-444.79305547,0.00013423,2]
[351314670,1738511520022,-500.0,0.00013423,2]
[351314671,1738511520032,-500.0,0.00013423,2]
[351314672,1738511520042,-561.08,0.00013423,2]
[351314673,1738511520053,-500.0,0.00013423,2]
[351314674,1738511520063,-515.69,0.00013423,2]
[351314675,1738511520074,-653.67,0.00013423,2]
[351314676,1738511520084,-1093.31,0.00013423,2]
[351314677,1738511520094,-1053.18,0.00013423,2]
[351314678,1738511520105,-1273.51,0.00013423,2]
[351314679,1738511520115,-522.28,0.00013423,2]
[351314680,1738511520126,-1239.31,0.00013423,2]
[351314681,1738511520137,-740.34,0.00013423,2]
[351314682,1738511520147,-644.61,0.00013423,2]
[351314683,1738511520158,-913.35,0.00013423,2]
[351314684,1738511520167,-1115.18,0.00013423,2]
[351314685,1738511520178,-1062.0,0.00013423,2]
[351314686,1738511520188,-945.68,0.00013423,2]
[351314687,1738511520198,-607.69,0.00013423,2]
[351314688,1738511520209,-500.0,0.00013423,2]
[351314689,1738511520219,-522.96,0.00013423,2]
[351314690,1738511520229,-1035.26,0.00013423,2]
[351314691,1738511520239,-2196.81,0.00013423,2]
[351314692,1738511520249,-1325.26,0.00013423,2]
[351314693,1738511520259,-975.31,0.00013423,2]
[351314694,1738511520269,-1985.37,0.00013423,2]
[351314695,1738511520279,-918.08,0.00013423,2]
[351314696,1738511520289,-2083.26,0.00013423,2]
[351314697,1738511520300,-1965.57,0.00013423,2]
[351314698,1738511520310,-1323.45,0.00013423,2]
[351314699,1738511520320,-1635.63,0.00013423,2]
[351314700,1738511520331,-5662.33,0.00013423,2]
[351314701,1738511520342,-774.16,0.00013423,2]
[351314702,1738511520352,-782.48,0.00013423,2]
[351314703,1738511520361,-7030.17,0.00013423,2]
[351314704,1738511520375,-2514.52,0.00013423,2]
[351314705,1738511520386,-681.48,0.00013423,2]
[351314706,1738511520396,-790.42,0.00013423,2]
[351314707,1738511520405,-3657.25,0.00013423,2]
[351314708,1738511520415,-3049.12,0.00013423,2]
[351314709,1738511520425,-1745.16,0.00013423,2]
[351314710,1738511520434,-1031.35,0.00013423,2]
[351314711,1738511520446,-1816.81,0.00013423,2]
[351314712,1738511520455,-528.0,0.00013423,2]
[351314713,1738511520467,-4052.48,0.00013423,2]
[351314714,1738511520476,-602.22,0.00013423,2]
[351314715,1738511520487,-1474.86,0.00013423,2]
[351314716,1738511520497,-4337.5,0.00013423,2]
[351314717,1738511520509,-1297.61,0.00013423,2]
[351314718,1738511520520,-1453.24,0.00013423,2]
[351314719,1738511520534,-1696.27,0.00013423,2]
[351314720,1738511520546,-1292.86,0.00013423,2]
[351314721,1738511520556,-1155.8,0.00013423,2]
[351314722,1738511520567,-734.3,0.00013423,2]
[351314723,1738511520576,-1512.01,0.00013423,2]
[351314724,1738511520586,-1336.03,0.00013423,2]
[351314725,1738511520597,-686.62,0.00013423,2]
[351314726,1738511520607,-1393.61,0.00013423,2]
[351314727,1738511520618,-1657.23,0.00013423,2]
[351314728,1738511520628,-1120.37,0.00013423,2]
[351314729,1738511520638,-823.51,0.00013423,2]
[351314730,1738511520648,-453.33458877,0.00013424,2]
[351314731,1738511520657,-663.36,0.00013424,2]
[351314732,1738511520668,-500.0,0.00013424,2]
[351314733,1738511520678,-500.0,0.00013424,2]
[351314734,1738511520689,-698.15,0.00013424,2]
[351314735,1738511520699,-500.0,0.00013424,2]
[351314736,1738511520709,-500.0,0.00013424,2]
[351314737,1738511520719,-224.15760768,0.00013424,2]
[351314738,1738511520728,-705.16,0.00013424,2]
[351314739,1738511520739,-531.92,0.00013424,2]
[351314740,1738511520748,-500.0,0.00013424,2]
[351314741,1738511520758,-500.0,0.00013424,2]
[351314742,1738511520768,-322.08456577,0.00013424,2]
[351314743,1738511520778,-719.85,0.00013424,2]
[351314744,1738511520787,-594.38,0.00013424,2]
[351314745,1738511520797,-563.78,0.00013424,2]
[351314746,1738511520808,-752.42,0.00013424,2]
[351314747,1738511520818,-743.8,0.00013424,2]
[351314748,1738511520829,-512.36549571,0.00013424,2]
[351314749,1738511520839,-500.0,0.00013424,2]
[351314750,1738511521032,-500.0,0.00013424,2]
[351314751,1738511521044,-725.47,0.00013424,2]
[351314752,1738511521055,-764.06,0.00013424,2]
[351314753,1738511521065,-503.63563723,0.00013424,2]
[351314754,1738511521075,-698.18,0.00013424,2]
[351314755,1738511521084,-791.74,0.00013424,2]
[351314756,1738511521094,-807.25,0.00013424,2]
[351314757,1738511521104,-547.53,0.00013424,2]
[351314758,1738511521114,-500.0,0.00013424,2]
[351314759,1738511521124,-500.0,0.00013424,2]
[351314760,1738511521133,-524.24955558,0.00013424,2]
[351314761,1738511521143,-837.73,0.00013424,2]
[351314762,1738511521153,-621.45,0.00013424,2]
[351314763,1738511521164,-631.63,0.00013424,2]
[351314764,1738511521173,-799.17,0.00013424,2]
[351314765,1738511521183,-771.95,0.00013424,2]
[351314766,1738511521194,-620.52,0.00013424,2]
[351314767,1738511521204,-618.87,0.00013424,2]
[351314768,1738511521213,-616.27,0.00013424,2]
[351314769,1738511521223,-203.17,0.00013424,2]
[351314770,1738511521233,-565.37,0.00013424,2]
[351314771,1738511521243,-500.0,0.00013424,2]
[351314772,1738511521252,-780.81,0.00013424,2]
[351314773,1738511521262,-584.3,0.00013424,2]
[351314774,1738511521272,-500.0,0.00013424,2]
[351314775,1738511521281,-2686.29,0.00013424,2]
[351314776,1738511521291,-269.295923,0.00013424,2]
[351314777,1738511521301,-269.295923,0.00013424,2]
[351314778,1738511521310,-808.37,0.00013424,2]
[351314779,1738511521320,-794.83,0.00013424,2]
[351314780,1738511521329,-2679.98,0.00013424,2]
[351314781,1738511521339,-2338.08,0.00013424,2]
[351314782,1738511521348,-1073.23,0.00013424,2]
[351314783,1738511521358,-1816.82,0.00013424,2]
[351314784,1738511521368,-1683.79,0.00013424,2]
[351314785,1738511521378,-4162.42,0.00013424,2]
[351314786,1738511521388,-3144.7,0.00013424,2]
[351314787,1738511521398,-8870.537806,0.00013424,2]
[351314788,1738511521408,-175.9815,0.00013424,2]
[351314789,1738511521418,-575.75,0.00013424,2]
[351314790,1738511521430,-689.19,0.00013424,2]
[351314791,1738511521440,-305.292181,0.00013424,2]
[351314792,1738511521450,-1191.99,0.00013424,2]
[351314793,1738511521459,-851.33,0.00013424,2]
[351314794,1738511521469,-677.75,0.00013424,2]
[351314795,1738511521479,-1595.43,0.00013424,2]
[351314796,1738511521489,-2506.07,0.00013424,2]
[351314797,1738511521498,-539.77,0.00013424,2]
[351314798,1738511521511,-842.15,0.00013424,2]
[351314799,1738511521521,-3571.76,0.00013424,2]
[351314800,1738511521531,-754.64,0.00013424,2]
[351314801,1738511521540,-779.97,0.00013424,2]
[351314802,1738511521552,-3366.95,0.00013424,2]
[351314803,1738511521562,-319.816449,0.00013424,2]
[351314804,1738511521572,-1388.96,0.00013424,2]
[351314805,1738511521582,-1447.22,0.00013424,2]
[351314806,1738511521592,-1621.42,0.00013424,2]
[351314807,1738511521601,-1280.75,0.00013424,2]
[351314808,1738511521610,-2398.8,0.00013424,2]
[351314809,1738511521620,-986.99,0.00013424,2]
[351314810,1738511521629,-6074.3,0.00013424,2]
[351314811,1738511521640,-886.37,0.00013424,2]
[351314812,1738511521651,-1376.7,0.00013424,2]
[351314813,1738511521662,-500.0,0.00013424,2]
[351314814,1738511521671,-715.29,0.00013424,2]
[351314815,1738511521680,-1472.49,0.00013424,2]
[351314816,1738511521691,-2816.92,0.00013424,2]
[351314817,1738511521701,-520.69,0.00013424,2]
[351314818,1738511521710,-1537.46,0.00013424,2]
[351314819,1738511521720,-1782.22,0.00013424,2]
[351314820,1738511521729,-2593.44,0.00013424,2]
[351314821,1738511521738,-1707.98,0.00013424,2]
[351314822,1738511521748,-814.03,0.00013424,2]
[351314823,1738511521758,-2517.19,0.00013424,2]
[351314824,1738511521768,-3495.99,0.00013424,2]
[351314825,1738511521777,-1097.15,0.00013424,2]
[351314826,1738511521787,-534.58448271,0.00013424,2]
[351314827,1738511521797,-3686.72,0.00013424,2]
[351314828,1738511521806,-873.88,0.00013424,2]
[351314829,1738511521815,-4032.99,0.00013424,2]
[351314830,1738511521824,-500.0,0.00013424,2]
[351314831,1738511521834,-2612.06,0.00013424,2]
[351314832,1738511521843,-3411.01,0.00013424,2]
[351314833,1738511521852,-2404.98,0.00013424,2]
[351314834,1738511521862,-500.0,0.00013424,2]
[351314835,1738511521871,-866.33,0.00013424,2]
[351314836,1738511521881,-3469.55,0.00013424,2]
[351314837,1738511521891,-1883.12,0.00013424,2]
[351314838,1738511521902,-2058.8,0.00013424,2]
[351314839,1738511521911,-1319.01,0.00013424,2]
[351314840,1738511521922,-608.43,0.00013424,2]
[351314841,1738511521931,-2391.61,0.00013424,2]
[351314842,1738511521941,-4530.32,0.00013424,2]
[351314843,1738511521951,-500.0,0.00013424,2]
[351314844,1738511521961,-1228.14,0.00013424,2]
[351314845,1738511521970,-6198.62,0.00013424,2]
[351314846,1738511521980,-4177.74,0.00013424,2]
[351314847,1738511521989,-853.08,0.00013424,2]
[351314848,1738511521999,-669.71,0.00013424,2]
[351314849,1738511522008,-539.5,0.00013424,2]
[351314850,1738511522018,-1402.67,0.00013424,2]
[351314851,1738511522028,-1801.53,0.00013424,2]
[351314852,1738511522037,-1549.92,0.00013424,2]
[351314853,1738511522047,-820.42,0.00013424,2]
[351314854,1738511522058,-569.44,0.00013424,2]
[351314855,1738511522068,-935.02,0.00013424,2]
[351314856,1738511522078,-816.63,0.00013424,2]
[351314857,1738511522088,-259.59484962,0.00013424,2]
[351314858,1738511522097,-885.67,0.00013424,2]
[351314859,1738511522107,-825.88,0.00013432,2]
[351314860,1738511522117,-3118.0900435,0.00013513,2]
[351314861,1738511522127,-1006.07874597,0.00013522,2]
[351314862,1738511522136,-1500.0,0.00013522,2]
[351314863,1738511522146,-878.03,0.00013547,2]
[351314864,1738511522155,-152.02,0.00013547,2]
[351314865,1738511522165,-1332.82,0.00013554,2]
[351314866,1738511522174,-1964.01,0.00013554,2]
[351314867,1738511522184,-2603.59,0.00013554,2]
[351314868,1738511522194,-2889.94,0.00013554,2]
[351314869,1738511522203,-4743.23,0.00013554,2]
[351314870,1738511522213,-10523.62,0.00013554,2]
[351314871,1738511522223,-1554.63,0.00013554,2]
[351314872,1738511522232,-1284.59,0.00013554,2]
[351314873,1738511522242,-1679.21,0.00013554,2]
[351314874,1738511522251,-2652.81,0.00013554,2]
[351314875,1738511522260,-654.17,0.00013554,2]
[351314876,1738511522270,-1718.82,0.00013554,2]
[351314877,1738511522279,-1974.37,0.00013554,2]
[351314878,1738511522288,-2000.83,0.00013554,2]
[351314879,1738511522298,-836.56,0.00013554,2]
[351314880,1738511522307,-1343.39,0.00013554,2]
[351314881,1738511522316,-1186.75,0.00013554,2]
[351314882,1738511522326,-500.0,0.00013555,2]
[351314883,1738511522335,-596.58,0.00013555,2]
[351314884,1738511522344,-500.0,0.00013555,2]
[351314885,1738511522354,-710.49,0.00013555,2]
[351314886,1738511522364,-323.22780939,0.00013555,2]
[351314887,1738511522374,-1187.42,0.00013556,2]
[351314888,1738511522383,-817.82,0.00013556,2]
[351314889,1738511522393,-607.41,0.00013556,2]
[351314890,1738511522403,-500.0,0.00013556,2]
[351314891,1738511522413,-1230.03,0.00013556,2]
[351314892,1738511522422,-615.34,0.00013556,2]
[351314893,1738511522432,-714.07,0.00013556,2]
[351314894,1738511522442,-1449.17,0.00013556,2]
[351314895,1738511522452,-1251.19,0.00013556,2]
[351314896,1738511522462,-1405.84,0.00013556,2]
[351314897,1738511522472,-1494.61,0.00013556,2]
[351314898,1738511522481,-828.44,0.00013556,2]
[351314899,1738511522491,-500.0,0.00013556,2]
[351314900,1738511522501,-676.04,0.00013556,2]
[351314901,1738511522511,-535.23,0.00013556,2]
[351314902,1738511522523,-1723.36,0.00013556,2]
[351314903,1738511522533,-854.84,0.00013556,2]
[351314904,1738511522542,-1459.08,0.00013556,2]
[351314905,1738511522552,-1678.19,0.00013556,2]
[351314906,1738511522563,-571.62,0.00013556,2]
[351314907,1738511522572,-780.5,0.00013556,2]
[351314908,1738511522582,-1296.82,0.00013556,2]
[351314909,1738511522593,-151.0,0.00013556,2]
[351314910,1738511522602,-1446.98,0.00013556,2]
[351314911,1738511522612,-705.724075,0.00013556,2]
[351314912,1738511522622,-705.724075,0.00013556,2]
[351314913,1738511522632,-618.81,0.00013556,2]
[351314914,1738511522642,-730.18,0.00013556,2]
[351314915,1738511522652,-609.86,0.00013556,2]
[351314916,1738511522662,-978.46,0.0001356,2]
[351314917,1738511522672,-518.13,0.0001356,2]
[351314918,1738511522682,-1147.35,0.0001356,2]
[351314919,1738511522692,-668.46,0.0001356,2]
[351314920,1738511522703,-1211.37,0.0001356,2]
[351314921,1738511522712,-594.76,0.0001356,2]
[351314922,1738511522722,-1093.43,0.0001356,2]
[351314923,1738511522732,-500.0,0.0001356,2]
[351314924,1738511522742,-829.51,0.0001356,2]
[351314925,1738511522751,-500.0,0.0001356,2]
[351314926,1738511522761,-500.0,0.0001356,2]
[351314927,1738511522771,-1097.71,0.0001356,2]
[351314928,1738511522780,-1068.84,0.0001356,2]
[351314929,1738511522790,-500.0,0.0001356,2]
[351314930,1738511522800,-816.321679,0.0001356,2]
[351314931,1738511522810,-500.0,0.0001356,2]
[351314932,1738511522820,-561.08,0.0001356,2]
[351314933,1738511522831,-200.68094649,0.0001356,2]
[351314934,1738511522841,-553.986468,0.0001356,2]
[351314935,1738511522851,-515.69,0.0001356,2]
[351314936,1738511522861,-653.67,0.0001356,2]
[351314937,1738511522871,-553.986468,0.0001356,2]
[351314938,1738511522881,-1093.31,0.0001356,2]
[351314939,1738511522891,-1053.18,0.0001356,2]
[351314940,1738511522902,-1273.51,0.0001356,2]
[351314941,1738511522912,-522.28,0.0001356,2]
[351314942,1738511522922,-1239.31,0.0001356,2]
[351314943,1738511522932,-151.0,0.0001356,2]
[351314944,1738511522943,-740.34,0.0001356,2]
[351314945,1738511522954,-151.0,0.0001356,2]
[351314946,1738511522964,-644.61,0.0001356,2]
[351314947,1738511522974,-913.35,0.0001356,2]
[351314948,1738511522985,-652.17835,0.0001356,2]
[351314949,1738511522994,-652.17835,0.0001356,2]
[351314950,1738511523004,-1115.18,0.0001356,2]
[351314951,1738511523014,-1062.0,0.0001356,2]
[351314952,1738511523024,-1931.954796,0.0001356,2]
[351314953,1738511523035,-1931.954796,0.0001356,2]
[351314954,1738511523045,-945.68,0.0001356,2]
[351314955,1738511523056,-607.69,0.0001356,2]
[351314956,1738511523067,-500.0,0.0001356,2]
[351314957,1738511523078,-522.96,0.0001356,2]
[351314958,1738511523089,-1035.26,0.0001356,2]
[351314959,1738511523099,-2196.81,0.0001356,2]
[351314960,1738511523110,-1325.26,0.0001356,2]
[351314961,1738511523120,-975.31,0.0001356,2]
[351314962,1738511523130,-1985.37,0.0001356,2]
[351314963,1738511523141,-918.08,0.0001356,2]
[351314964,1738511523151,-2083.26,0.0001356,2]
[351314965,1738511523162,-1965.57,0.0001356,2]
[351314966,1738511523172,-1323.45,0.0001356,2]
[351314967,1738511523183,-1635.63,0.0001356,2]
[351314968,1738511523193,-5662.33,0.0001356,2]
[351314969,1738511523203,-774.16,0.0001356,2]
[351314970,1738511523213,-782.48,0.0001356,2]
[351314971,1738511523223,-7030.17,0.0001356,2]
[351314972,1738511523233,-2514.52,0.0001356,2]
[351314973,1738511523244,-681.48,0.0001356,2]
[351314974,1738511523254,-790.42,0.0001356,2]
[351314975,1738511523269,-3657.25,0.0001356,2]
[351314976,1738511523296,-3049.12,0.0001356,2]
[351314977,1738511523306,-1745.16,0.0001356,2]
[351314978,1738511523316,-1031.35,0.0001356,2]
[351314979,1738511523327,-1816.81,0.0001356,2]
[351314980,1738511523337,-528.0,0.0001356,2]
[351314981,1738511523347,-4052.48,0.0001356,2]
[351314982,1738511523358,-602.22,0.0001356,2]
[351314983,1738511523367,-1474.86,0.0001356,2]
[351314984,1738511523377,-4337.5,0.0001356,2]
[351314985,1738511523388,-1297.61,0.0001356,2]
[351314986,1738511523454,-1453.24,0.0001356,2]
[351314987,1738511523464,-1696.27,0.0001356,2]
[351314988,1738511523474,-1292.86,0.0001356,2]
[351314989,1738511523483,-1155.8,0.0001356,2]
[351314990,1738511523492,-734.3,0.0001356,2]
[351314991,1738511523502,-1512.01,0.0001356,2]
[351314992,1738511523515,-1336.03,0.0001356,2]
[351314993,1738511523525,-686.62,0.0001356,2]
[351314994,1738511523536,-1393.61,0.0001356,2]
[351314995,1738511523547,-1657.23,0.0001356,2]
[351314996,1738511523557,-1120.37,0.0001356,2]
[351314997,1738511523567,-823.51,0.0001356,2]
[351314998,1738511523577,-663.36,0.00013561,2]
[351314999,1738511523587,-500.0,0.00013561,2]
[351315000,1738511523600,-609.426977,0.00013561,2]
[351315001,1738511523611,-500.0,0.00013561,2]
[351315002,1738511523623,-609.426977,0.00013561,2]
[351315003,1738511523634,-151.0,0.00013561,2]
[351315004,1738511523644,-151.0,0.00013561,2]
[351315005,1738511523655,-151.0,0.00013561,2]
[351315006,1738511523667,-698.15,0.00013561,2]
[351315007,1738511523678,-226.77853368,0.00013561,2]
[351315008,1738511523689,-371.79278413,0.00013561,2]
[351315009,1738511523703,-705.16,0.00013561,2]
[351315010,1738511523715,-531.92,0.00013561,2]
[351315011,1738511523726,-500.0,0.00013561,2]
[351315012,1738511523738,-445.06256422,0.00013561,2]
[351315013,1738511523750,-719.85,0.00013561,2]
[351315014,1738511523761,-594.38,0.00013561,2]
[351315015,1738511523773,-563.78,0.00013561,2]
[351315016,1738511523784,-752.42,0.00013561,2]
[351315017,1738511523795,-743.8,0.00013561,2]
[351315018,1738511523808,-500.0,0.00013561,2]
[351315019,1738511523820,-500.0,0.00013561,2]
[351315020,1738511523832,-725.47,0.00013561,2]
[351315021,1738511523845,-764.06,0.00013561,2]
[351315022,1738511523856,-698.18,0.00013561,2]
[351315023,1738511523867,-791.74,0.00013561,2]
[351315024,1738511523878,-807.25,0.00013561,2]
[351315025,1738511523888,-547.53,0.00013561,2]
[351315026,1738511523899,-837.73,0.00013561,2]
[351315027,1738511523910,-621.45,0.00013561,2]
[351315028,1738511523920,-631.63,0.00013561,2]
[351315029,1738511523930,-799.17,0.00013561,2]
[351315030,1738511523940,-771.95,0.00013561,2]
[351315031,1738511523955,-620.52,0.00013561,2]
[351315032,1738511523966,-618.87,0.00013561,2]
[351315033,1738511523977,-616.27,0.00013561,2]
[351315034,1738511523987,-565.37,0.00013561,2]
[351315035,1738511523997,-500.0,0.00013561,2]